[Event "Titled Tuesday Blitz October 5 2021"]
[White "Kezin, Roman"]
[Black "Nguyen Hong Nhung"]
[WhiteFideId "24124621"]
[BlackFideId "12412201"]
[WhiteElo "2557"]
[BlackElo "1661"]
[Result "1-0"]
[Round "01"]
[TimeControl "180+1"]
[Date "2021.10.05"]
[WhiteClock "0:01:33"]
[BlackClock "0:00:17"]

1. d4 {[%clk 0:02:58]}  f5 {[%clk 0:02:59]} 2. Nf3 {[%clk 0:02:53]}  Nf6 {[%clk 0:02:59]} 3. g3 {[%clk 0:02:54]}  g6 {[%clk 0:02:59]} 4. Bg2 {[%clk 0:02:55]}  Bg7 {[%clk 0:03:00]} 5. O-O {[%clk 0:02:55]}  O-O {[%clk 0:03:00]} 6. c4 {[%clk 0:02:56]}  d6 {[%clk 0:03:01]} 7. Nc3 {[%clk 0:02:56]}  Qe8 {[%clk 0:03:01]} 8. Nd5 {[%clk 0:02:55]}  Na6 {[%clk 0:02:57]} 9. Nxf6+ {[%clk 0:02:54]}  Bxf6 {[%clk 0:02:58]} 10. Bh6 {[%clk 0:02:55]}  Bg7 {[%clk 0:02:53]} 11. Bxg7 {[%clk 0:02:54]}  Kxg7 {[%clk 0:02:54]} 12. Re1 {[%clk 0:02:52]}  e5 {[%clk 0:02:45]} 13. dxe5 {[%clk 0:02:49]}  dxe5 {[%clk 0:02:46]} 14. e4 {[%clk 0:02:50]}  f4 {[%clk 0:02:46]} 15. Qd5 {[%clk 0:02:51]}  Nb4 {[%clk 0:02:36]} 16. Qc5 {[%clk 0:02:44]}  Nd3 {[%clk 0:02:34]} 17. Qxc7+ {[%clk 0:02:41]}  Rf7 {[%clk 0:02:32]} 18. Qa5 {[%clk 0:02:41]}  Nxe1 {[%clk 0:02:31]} 19. Rxe1 {[%clk 0:02:41]}  Re7 {[%clk 0:02:27]} 20. Qc3 {[%clk 0:02:37]}  fxg3 {[%clk 0:02:26]} 21. hxg3 {[%clk 0:02:37]}  Bg4 {[%clk 0:02:26]} 22. Nd2 {[%clk 0:02:37]}  Kg8 {[%clk 0:02:23]} 23. c5 {[%clk 0:02:37]}  Rc8 {[%clk 0:02:21]} 24. b4 {[%clk 0:02:36]}  Be6 {[%clk 0:02:17]} 25. Qxe5 {[%clk 0:02:34]}  Bxa2 {[%clk 0:02:17]} 26. Qa1 {[%clk 0:02:29]}  Qf7 {[%clk 0:02:13]} 27. e5 {[%clk 0:02:27]}  a5 {[%clk 0:02:09]} 28. Ne4 {[%clk 0:02:18]}  Rf8 {[%clk 0:01:57]} 29. Nf6+ {[%clk 0:02:15]}  Kh8 {[%clk 0:01:55]} 30. bxa5 {[%clk 0:02:11]}  Bc4 {[%clk 0:01:41]} 31. Qb2 {[%clk 0:02:11]}  Rc7 {[%clk 0:01:35]} 32. Qb6 {[%clk 0:01:59]}  Be6 {[%clk 0:01:25]} 33. f4 {[%clk 0:01:52]}  Rfc8 {[%clk 0:01:24]} 34. Ne4 {[%clk 0:01:49]}  Qe7 {[%clk 0:01:07]} 35. Nd6 {[%clk 0:01:48]}  Ra8 {[%clk 0:01:00]} 36. Bxb7 {[%clk 0:01:46]}  Rb8 {[%clk 0:01:00]} 37. a6 {[%clk 0:01:46]}  Bd5 {[%clk 0:00:48]} 38. Bxd5 {[%clk 0:01:46]}  Rxb6 {[%clk 0:00:48]} 39. cxb6 {[%clk 0:01:47]}  Rc2 {[%clk 0:00:46]} 40. a7 {[%clk 0:01:44]}  Rc8 {[%clk 0:00:32]} 41. b7 {[%clk 0:01:42]}  Rd8 {[%clk 0:00:19]} 42. b8=Q {[%clk 0:01:40]}  Kg7 {[%clk 0:00:19]} 43. Qb7 {[%clk 0:01:35]}  Rd7 {[%clk 0:00:17]} 44. a8=Q {[%clk 0:01:33]} 1-0


[Site "https://www.chess.com"]

[Event "Titled Tuesday Blitz October 5 2021"]
[White "Koridze, Lile"]
[Black "Sorokin, Aleksey"]
[WhiteFideId "13612514"]
[BlackFideId "24176460"]
[WhiteElo "1978"]
[BlackElo "2476"]
[Result "0-1"]
[Round "01"]
[TimeControl "180+1"]
[Date "2021.10.05"]
[WhiteClock "0:00:11"]
[BlackClock "0:00:38"]

1. d4 {[%clk 0:03:00]}  Nf6 {[%clk 0:02:58]} 2. c4 {[%clk 0:02:59]}  g6 {[%clk 0:02:58]} 3. Nc3 {[%clk 0:02:50]}  d5 {[%clk 0:02:58]} 4. Nf3 {[%clk 0:02:49]}  Bg7 {[%clk 0:02:57]} 5. Bg5 {[%clk 0:02:48]}  Ne4 {[%clk 0:02:57]} 6. cxd5 {[%clk 0:02:48]}  Nxg5 {[%clk 0:02:57]} 7. Nxg5 {[%clk 0:02:48]}  e6 {[%clk 0:02:58]} 8. Qd2 {[%clk 0:02:48]}  exd5 {[%clk 0:02:57]} 9. Qe3+ {[%clk 0:02:48]}  Kf8 {[%clk 0:02:57]} 10. Qf4 {[%clk 0:02:48]}  Bf6 {[%clk 0:02:53]} 11. h4 {[%clk 0:02:48]}  c6 {[%clk 0:02:39]} 12. e4 {[%clk 0:02:39]}  h6 {[%clk 0:02:36]} 13. Nf3 {[%clk 0:02:35]}  Be6 {[%clk 0:02:22]} 14. e5 {[%clk 0:02:25]}  Be7 {[%clk 0:02:22]} 15. Bd3 {[%clk 0:02:25]}  Kg7 {[%clk 0:02:22]} 16. O-O-O {[%clk 0:02:14]}  Nd7 {[%clk 0:02:16]} 17. g4 {[%clk 0:02:10]}  Rc8 {[%clk 0:02:13]} 18. Rdg1 {[%clk 0:01:56]}  c5 {[%clk 0:02:08]} 19. Kb1 {[%clk 0:01:54]}  Qb6 {[%clk 0:02:04]} 20. h5 {[%clk 0:01:39]}  g5 {[%clk 0:02:00]} 21. Qe3 {[%clk 0:01:39]}  cxd4 {[%clk 0:02:00]} 22. Nxd4 {[%clk 0:01:32]}  Nxe5 {[%clk 0:01:18]} 23. Qxe5+ {[%clk 0:00:44]}  Bf6 {[%clk 0:01:18]} 24. Nxe6+ {[%clk 0:00:44]}  fxe6 {[%clk 0:01:15]} 25. Na4 {[%clk 0:00:44]}  Bxe5 {[%clk 0:01:06]} 26. Nxb6 {[%clk 0:00:43]}  axb6 {[%clk 0:01:07]} 27. Re1 {[%clk 0:00:44]}  Kf6 {[%clk 0:01:05]} 28. Re3 {[%clk 0:00:44]}  Bf4 {[%clk 0:01:01]} 29. Re2 {[%clk 0:00:43]}  Rc6 {[%clk 0:01:01]} 30. Rhe1 {[%clk 0:00:39]}  Rhc8 {[%clk 0:01:00]} 31. Rc2 {[%clk 0:00:33]}  Rxc2 {[%clk 0:00:58]} 32. Bxc2 {[%clk 0:00:33]}  Rc5 {[%clk 0:00:56]} 33. Bd3 {[%clk 0:00:31]}  e5 {[%clk 0:00:56]} 34. f3 {[%clk 0:00:26]}  Ke6 {[%clk 0:00:56]} 35. a3 {[%clk 0:00:23]}  Kd6 {[%clk 0:00:56]} 36. Bc2 {[%clk 0:00:18]}  Rc4 {[%clk 0:00:56]} 37. Bd3 {[%clk 0:00:17]}  Rd4 {[%clk 0:00:54]} 38. Bf5 {[%clk 0:00:17]}  Rd2 {[%clk 0:00:52]} 39. Rc1 {[%clk 0:00:14]}  Rf2 {[%clk 0:00:49]} 40. Rc8 {[%clk 0:00:14]}  Rxf3 {[%clk 0:00:46]} 41. b4 {[%clk 0:00:14]}  e4 {[%clk 0:00:44]} 42. Rd8+ {[%clk 0:00:14]}  Ke5 {[%clk 0:00:44]} 43. Rd7 {[%clk 0:00:14]}  e3 {[%clk 0:00:39]} 44. Rxb7 {[%clk 0:00:13]}  Kd4 {[%clk 0:00:39]} 45. Re7 {[%clk 0:00:13]}  Be5 {[%clk 0:00:38]} 46. Bd3 {[%clk 0:00:11]} 0-1


[Site "https://www.chess.com"]

[Event "Titled Tuesday Blitz October 5 2021"]
[White "Kubicka, Anna"]
[Black "Bortnyk, Olexandr"]
[WhiteFideId "1152254"]
[BlackFideId "14120828"]
[WhiteElo "1903"]
[BlackElo "2723"]
[Result "0-1"]
[Round "01"]
[TimeControl "180+1"]
[Date "2021.10.05"]
[WhiteClock "0:00:57"]
[BlackClock "0:01:32"]

1. e4 {[%clk 0:03:00]}  Nf6 {[%clk 0:02:56]} 2. e5 {[%clk 0:02:59]}  Nd5 {[%clk 0:02:56]} 3. d4 {[%clk 0:02:59]}  d6 {[%clk 0:02:56]} 4. c4 {[%clk 0:02:59]}  Nb6 {[%clk 0:02:56]} 5. exd6 {[%clk 0:03:00]}  exd6 {[%clk 0:02:57]} 6. Nc3 {[%clk 0:03:01]}  Be7 {[%clk 0:02:57]} 7. Bd3 {[%clk 0:03:00]}  O-O {[%clk 0:02:57]} 8. h3 {[%clk 0:02:58]}  Nc6 {[%clk 0:02:55]} 9. Nf3 {[%clk 0:02:58]}  Bf6 {[%clk 0:02:48]} 10. Be3 {[%clk 0:02:55]}  Re8 {[%clk 0:02:45]} 11. O-O {[%clk 0:02:55]}  d5 {[%clk 0:02:43]} 12. c5 {[%clk 0:02:51]}  Nc4 {[%clk 0:02:43]} 13. Bxc4 {[%clk 0:02:45]}  dxc4 {[%clk 0:02:44]} 14. d5 {[%clk 0:02:28]}  Ne5 {[%clk 0:02:21]} 15. Nxe5 {[%clk 0:02:23]}  Bxe5 {[%clk 0:02:22]} 16. Bd4 {[%clk 0:02:17]}  Bf5 {[%clk 0:01:36]} 17. Bxe5 {[%clk 0:02:13]}  Rxe5 {[%clk 0:01:37]} 18. Qd4 {[%clk 0:02:11]}  Qf6 {[%clk 0:01:38]} 19. Qxc4 {[%clk 0:02:06]}  Bxh3 {[%clk 0:01:38]} 20. gxh3 {[%clk 0:01:28]}  Rg5+ {[%clk 0:01:37]} 21. Kh2 {[%clk 0:01:18]}  Qf3 {[%clk 0:01:32]} 22. Qe4 {[%clk 0:00:57]}  Rg2+ {[%clk 0:01:31]} 23. Kh1 {[%clk 0:00:57]}  Qxh3# {[%clk 0:01:32]} 0-1


[Site "https://www.chess.com"]

[Event "Titled Tuesday Blitz October 5 2021"]
[White "Kuegel, Tobias"]
[Black "Riazantsev, Alexander"]
[WhiteFideId "4636295"]
[BlackFideId "4125029"]
[WhiteElo "2435"]
[BlackElo "2497"]
[Result "0-1"]
[Round "01"]
[TimeControl "180+1"]
[Date "2021.10.05"]
[WhiteClock "0:00:04"]
[BlackClock "0:01:18"]

1. Nf3 {[%clk 0:02:57]}  d5 {[%clk 0:02:59]} 2. b3 {[%clk 0:02:57]}  Nf6 {[%clk 0:02:58]} 3. Bb2 {[%clk 0:02:56]}  g6 {[%clk 0:02:57]} 4. e3 {[%clk 0:02:54]}  Bg7 {[%clk 0:02:56]} 5. d4 {[%clk 0:02:52]}  O-O {[%clk 0:02:56]} 6. Be2 {[%clk 0:02:52]}  b6 {[%clk 0:02:41]} 7. O-O {[%clk 0:02:48]}  Bb7 {[%clk 0:02:41]} 8. Ne5 {[%clk 0:02:42]}  c5 {[%clk 0:02:40]} 9. f4 {[%clk 0:02:40]}  Nc6 {[%clk 0:02:38]} 10. Nd2 {[%clk 0:02:21]}  e6 {[%clk 0:02:36]} 11. Rc1 {[%clk 0:02:05]}  Rc8 {[%clk 0:02:33]} 12. c3 {[%clk 0:01:58]}  Qe7 {[%clk 0:02:29]} 13. Qe1 {[%clk 0:01:36]}  Nd7 {[%clk 0:02:22]} 14. Ndf3 {[%clk 0:01:28]}  f6 {[%clk 0:02:20]} 15. Nxd7 {[%clk 0:00:58]}  Qxd7 {[%clk 0:02:20]} 16. c4 {[%clk 0:00:56]}  Ne7 {[%clk 0:02:10]} 17. Qf2 {[%clk 0:00:31]}  Nf5 {[%clk 0:02:08]} 18. g4 {[%clk 0:00:30]}  Nd6 {[%clk 0:02:08]} 19. Nd2 {[%clk 0:00:27]}  f5 {[%clk 0:02:01]} 20. g5 {[%clk 0:00:26]}  cxd4 {[%clk 0:01:56]} 21. exd4 {[%clk 0:00:26]}  Ne4 {[%clk 0:01:53]} 22. Nxe4 {[%clk 0:00:15]}  fxe4 {[%clk 0:01:53]} 23. Rfd1 {[%clk 0:00:16]}  Rf7 {[%clk 0:01:46]} 24. Ba3 {[%clk 0:00:14]}  Bf8 {[%clk 0:01:35]} 25. Bb2 {[%clk 0:00:13]}  Bd6 {[%clk 0:01:34]} 26. cxd5 {[%clk 0:00:07]}  Bxd5 {[%clk 0:01:30]} 27. Qg2 {[%clk 0:00:04]}  Bxf4 {[%clk 0:01:28]} 28. Rxc8+ {[%clk 0:00:03]}  Qxc8 {[%clk 0:01:29]} 29. Rf1 {[%clk 0:00:04]}  Qc2 {[%clk 0:01:18]} 0-1


[Site "https://www.chess.com"]

[Event "Titled Tuesday Blitz October 5 2021"]
[White "Ladan, Nicholas"]
[Black "Seo, Jung Min"]
[WhiteFideId "30918855"]
[BlackFideId "1734687"]
[WhiteElo "2383"]
[BlackElo "2486"]
[Result "0-1"]
[Round "01"]
[TimeControl "180+1"]
[Date "2021.10.05"]
[WhiteClock "0:00:11"]
[BlackClock "0:00:09"]

1. d4 {[%clk 0:03:00]}  Nf6 {[%clk 0:02:59]} 2. Nf3 {[%clk 0:03:01]}  g6 {[%clk 0:02:59]} 3. Nbd2 {[%clk 0:03:01]}  d5 {[%clk 0:02:59]} 4. b4 {[%clk 0:03:01]}  Bg7 {[%clk 0:02:58]} 5. e3 {[%clk 0:03:00]}  a5 {[%clk 0:02:57]} 6. b5 {[%clk 0:03:00]}  c5 {[%clk 0:02:55]} 7. a4 {[%clk 0:02:53]}  cxd4 {[%clk 0:02:53]} 8. Nxd4 {[%clk 0:02:50]}  O-O {[%clk 0:02:49]} 9. Be2 {[%clk 0:02:48]}  e5 {[%clk 0:02:48]} 10. N4b3 {[%clk 0:02:48]}  Nbd7 {[%clk 0:02:45]} 11. Bb2 {[%clk 0:02:46]}  Re8 {[%clk 0:02:45]} 12. O-O {[%clk 0:02:46]}  Nb6 {[%clk 0:02:42]} 13. c4 {[%clk 0:02:37]}  Bf5 {[%clk 0:02:24]} 14. c5 {[%clk 0:02:26]}  Nbd7 {[%clk 0:02:24]} 15. Rc1 {[%clk 0:02:19]}  Rc8 {[%clk 0:02:22]} 16. Nf3 {[%clk 0:02:14]}  Bf8 {[%clk 0:01:53]} 17. c6 {[%clk 0:02:05]}  bxc6 {[%clk 0:01:53]} 18. bxc6 {[%clk 0:02:06]}  Nb6 {[%clk 0:01:53]} 19. Bxe5 {[%clk 0:02:00]}  Nxa4 {[%clk 0:01:50]} 20. Qd4 {[%clk 0:01:56]}  Rxe5 {[%clk 0:01:43]} 21. Nxe5 {[%clk 0:01:47]}  Nb6 {[%clk 0:01:43]} 22. Nxa5 {[%clk 0:01:41]}  Qc7 {[%clk 0:01:37]} 23. Rb1 {[%clk 0:01:32]}  Rb8 {[%clk 0:01:28]} 24. Nb7 {[%clk 0:01:29]}  Nc8 {[%clk 0:01:26]} 25. Nc5 {[%clk 0:01:19]}  Rxb1 {[%clk 0:01:25]} 26. Rxb1 {[%clk 0:01:19]}  Bxc5 {[%clk 0:01:25]} 27. Qxc5 {[%clk 0:01:15]}  Qxe5 {[%clk 0:01:25]} 28. Rc1 {[%clk 0:01:08]}  Ne4 {[%clk 0:01:18]} 29. Qa5 {[%clk 0:01:02]}  Qb2 {[%clk 0:01:12]} 30. Re1 {[%clk 0:00:54]}  Be6 {[%clk 0:01:04]} 31. Ba6 {[%clk 0:00:54]}  Qxf2+ {[%clk 0:01:02]} 32. Kh1 {[%clk 0:00:54]}  Nd2 {[%clk 0:00:39]} 33. Rd1 {[%clk 0:00:43]}  Bh3 {[%clk 0:00:32]} 34. gxh3 {[%clk 0:00:19]}  Qf3+ {[%clk 0:00:32]} 35. Kg1 {[%clk 0:00:18]}  Qxd1+ {[%clk 0:00:32]} 36. Kf2 {[%clk 0:00:18]}  Ne4+ {[%clk 0:00:32]} 37. Kg2 {[%clk 0:00:17]}  Qc2+ {[%clk 0:00:28]} 38. Kg1 {[%clk 0:00:16]}  Qf2+ {[%clk 0:00:25]} 39. Kh1 {[%clk 0:00:17]}  Qf3+ {[%clk 0:00:22]} 40. Kg1 {[%clk 0:00:16]}  Qxe3+ {[%clk 0:00:23]} 41. Kg2 {[%clk 0:00:16]}  Qf2+ {[%clk 0:00:19]} 42. Kh1 {[%clk 0:00:17]}  Ncd6 {[%clk 0:00:17]} 43. Qd8+ {[%clk 0:00:16]}  Kg7 {[%clk 0:00:17]} 44. c7 {[%clk 0:00:17]}  Qf3+ {[%clk 0:00:16]} 45. Kg1 {[%clk 0:00:17]}  Qxh3 {[%clk 0:00:16]} 46. c8=Q {[%clk 0:00:15]}  Qe3+ {[%clk 0:00:13]} 47. Kg2 {[%clk 0:00:14]}  Nxc8 {[%clk 0:00:13]} 48. Qxc8 {[%clk 0:00:14]}  Qf2+ {[%clk 0:00:12]} 49. Kh1 {[%clk 0:00:14]}  Qf3+ {[%clk 0:00:12]} 50. Kg1 {[%clk 0:00:14]}  Qe3+ {[%clk 0:00:12]} 51. Kg2 {[%clk 0:00:15]}  d4 {[%clk 0:00:11]} 52. Qc4 {[%clk 0:00:13]}  Qf2+ {[%clk 0:00:10]} 53. Kh1 {[%clk 0:00:14]}  Ng5 {[%clk 0:00:09]} 54. Qd5 {[%clk 0:00:11]}  Nf3 {[%clk 0:00:09]} 0-1


[Site "https://www.chess.com"]

[Event "Titled Tuesday Blitz October 5 2021"]
[White "Maghsoodloo, Parham"]
[Black "Ferreira, Vitor Hugo Vieira"]
[WhiteFideId "12539929"]
[BlackFideId "2119765"]
[WhiteElo "2601"]
[BlackElo "2216"]
[Result "1-0"]
[Round "01"]
[TimeControl "180+1"]
[Date "2021.10.05"]
[WhiteClock "0:00:19"]
[BlackClock "0:00:07"]

1. e4 {[%clk 0:03:00]}  c6 {[%clk 0:02:58]} 2. d4 {[%clk 0:03:00]}  d5 {[%clk 0:02:59]} 3. Nd2 {[%clk 0:02:57]}  dxe4 {[%clk 0:02:58]} 4. Nxe4 {[%clk 0:02:56]}  Nf6 {[%clk 0:02:59]} 5. f3 {[%clk 0:02:55]}  e5 {[%clk 0:02:47]} 6. dxe5 {[%clk 0:02:49]}  Qxd1+ {[%clk 0:02:45]} 7. Kxd1 {[%clk 0:02:50]}  Nxe4 {[%clk 0:02:45]} 8. fxe4 {[%clk 0:02:51]}  Bg4+ {[%clk 0:02:45]} 9. Be2 {[%clk 0:02:51]}  Be6 {[%clk 0:02:39]} 10. Nf3 {[%clk 0:02:49]}  Nd7 {[%clk 0:02:38]} 11. Bf4 {[%clk 0:02:41]}  h6 {[%clk 0:02:37]} 12. Nd4 {[%clk 0:02:40]}  O-O-O {[%clk 0:02:36]} 13. c3 {[%clk 0:02:29]}  Nc5 {[%clk 0:02:35]} 14. Kc2 {[%clk 0:02:28]}  Nxe4 {[%clk 0:02:33]} 15. Nxe6 {[%clk 0:02:27]}  fxe6 {[%clk 0:02:32]} 16. Bg4 {[%clk 0:02:28]}  Re8 {[%clk 0:02:29]} 17. Bh5 {[%clk 0:02:24]}  Rd8 {[%clk 0:02:27]} 18. Bg6 {[%clk 0:02:23]}  Nc5 {[%clk 0:02:23]} 19. h4 {[%clk 0:02:11]}  Be7 {[%clk 0:02:21]} 20. g3 {[%clk 0:02:07]}  Rhf8 {[%clk 0:02:20]} 21. b4 {[%clk 0:02:04]}  Na6 {[%clk 0:02:16]} 22. a3 {[%clk 0:02:02]}  Nc7 {[%clk 0:02:16]} 23. c4 {[%clk 0:02:02]}  b5 {[%clk 0:02:15]} 24. Bd3 {[%clk 0:02:02]}  bxc4 {[%clk 0:02:13]} 25. Bxc4 {[%clk 0:02:03]}  Nd5 {[%clk 0:02:13]} 26. Raf1 {[%clk 0:02:03]}  Rf5 {[%clk 0:02:02]} 27. Bd3 {[%clk 0:01:44]}  Rxf4 {[%clk 0:01:47]} 28. gxf4 {[%clk 0:01:39]}  Ne3+ {[%clk 0:01:47]} 29. Kc3 {[%clk 0:01:38]}  Nxf1 {[%clk 0:01:41]} 30. Bxf1 {[%clk 0:01:39]}  Rf8 {[%clk 0:01:40]} 31. Bh3 {[%clk 0:01:39]}  Rxf4 {[%clk 0:01:36]} 32. Bxe6+ {[%clk 0:01:38]}  Kc7 {[%clk 0:01:32]} 33. Rg1 {[%clk 0:01:25]}  g5 {[%clk 0:01:18]} 34. Rd1 {[%clk 0:01:25]}  Kb6 {[%clk 0:01:04]} 35. Rd7 {[%clk 0:01:24]}  Bf8 {[%clk 0:01:04]} 36. hxg5 {[%clk 0:01:15]}  hxg5 {[%clk 0:01:05]} 37. Rh7 {[%clk 0:01:15]}  a5 {[%clk 0:00:58]} 38. bxa5+ {[%clk 0:01:05]}  Kxa5 {[%clk 0:00:59]} 39. Bc4 {[%clk 0:01:06]}  Rf3+ {[%clk 0:00:54]} 40. Bd3 {[%clk 0:01:05]}  Bc5 {[%clk 0:00:28]} 41. Rh5 {[%clk 0:00:45]}  g4 {[%clk 0:00:26]} 42. e6 {[%clk 0:00:43]}  Kb6 {[%clk 0:00:23]} 43. a4 {[%clk 0:00:43]}  Be7 {[%clk 0:00:20]} 44. a5+ {[%clk 0:00:43]}  Kc7 {[%clk 0:00:19]} 45. a6 {[%clk 0:00:42]}  Kb6 {[%clk 0:00:17]} 46. Rh7 {[%clk 0:00:42]}  Bf6+ {[%clk 0:00:17]} 47. Kc2 {[%clk 0:00:43]}  Rf2+ {[%clk 0:00:16]} 48. Kd1 {[%clk 0:00:42]}  Ra2 {[%clk 0:00:12]} 49. e7 {[%clk 0:00:39]}  Bxe7 {[%clk 0:00:11]} 50. Rxe7 {[%clk 0:00:40]}  g3 {[%clk 0:00:12]} 51. Rg7 {[%clk 0:00:26]}  g2 {[%clk 0:00:12]} 52. Ke1 {[%clk 0:00:27]}  Kc5 {[%clk 0:00:11]} 53. Rg4 {[%clk 0:00:24]}  Kb6 {[%clk 0:00:11]} 54. Be2 {[%clk 0:00:24]}  Ra1+ {[%clk 0:00:10]} 55. Kf2 {[%clk 0:00:24]}  g1=Q+ {[%clk 0:00:10]} 56. Rxg1 {[%clk 0:00:25]}  Ra2 {[%clk 0:00:10]} 57. Rb1+ {[%clk 0:00:24]}  Ka7 {[%clk 0:00:10]} 58. Rb7+ {[%clk 0:00:24]}  Ka8 {[%clk 0:00:11]} 59. Rc7 {[%clk 0:00:25]}  Rc2 {[%clk 0:00:10]} 60. Ke3 {[%clk 0:00:21]}  Kb8 {[%clk 0:00:09]} 61. Rh7 {[%clk 0:00:20]}  c5 {[%clk 0:00:08]} 62. a7+ {[%clk 0:00:19]}  Ka8 {[%clk 0:00:07]} 63. Bf3# {[%clk 0:00:19]} 1-0


[Site "https://www.chess.com"]

[Event "Titled Tuesday Blitz October 5 2021"]
[White "Martin Carmona, Gaston Manuel"]
[Black "Oparin, Grigoriy"]
[WhiteFideId "22284567"]
[BlackFideId "24125890"]
[WhiteElo "2161"]
[BlackElo "2604"]
[Result "0-1"]
[Round "01"]
[TimeControl "180+1"]
[Date "2021.10.05"]
[WhiteClock "0:00:16"]
[BlackClock "0:01:56"]

1. d4 {[%clk 0:02:58]}  d6 {[%clk 0:02:57]} 2. e4 {[%clk 0:02:58]}  Nf6 {[%clk 0:02:57]} 3. Nc3 {[%clk 0:02:58]}  g6 {[%clk 0:02:57]} 4. f4 {[%clk 0:02:54]}  Bg7 {[%clk 0:02:57]} 5. Nf3 {[%clk 0:02:55]}  c5 {[%clk 0:02:57]} 6. dxc5 {[%clk 0:02:55]}  Qa5 {[%clk 0:02:56]} 7. Qd4 {[%clk 0:02:56]}  Nc6 {[%clk 0:02:52]} 8. Qc4 {[%clk 0:02:48]}  Nxe4 {[%clk 0:02:39]} 9. Qxe4 {[%clk 0:02:30]}  Bxc3+ {[%clk 0:02:38]} 10. Kd1 {[%clk 0:02:28]}  Bf5 {[%clk 0:02:31]} 11. Qc4 {[%clk 0:02:19]}  Bf6 {[%clk 0:02:29]} 12. cxd6 {[%clk 0:02:11]}  O-O-O {[%clk 0:02:29]} 13. Bd2 {[%clk 0:02:05]}  Rxd6 {[%clk 0:02:29]} 14. Bd3 {[%clk 0:02:03]}  Bxd3 {[%clk 0:02:28]} 15. cxd3 {[%clk 0:02:04]}  Qd5 {[%clk 0:02:26]} 16. Kc2 {[%clk 0:01:47]}  Rhd8 {[%clk 0:02:25]} 17. Qxd5 {[%clk 0:01:21]}  Rxd5 {[%clk 0:02:26]} 18. Rad1 {[%clk 0:01:21]}  Rxd3 {[%clk 0:02:24]} 19. b3 {[%clk 0:01:22]}  R3d5 {[%clk 0:02:18]} 20. Rhe1 {[%clk 0:00:50]}  h5 {[%clk 0:02:18]} 21. g3 {[%clk 0:00:49]}  b5 {[%clk 0:02:15]} 22. Kc1 {[%clk 0:00:47]}  Kb7 {[%clk 0:02:14]} 23. Be3 {[%clk 0:00:47]}  Bb2+ {[%clk 0:02:13]} 24. Kc2 {[%clk 0:00:34]}  Rxd1 {[%clk 0:02:14]} 25. Rxd1 {[%clk 0:00:34]}  Nb4+ {[%clk 0:02:15]} 26. Kxb2 {[%clk 0:00:34]}  Rxd1 {[%clk 0:02:15]} 27. Ne5 {[%clk 0:00:34]}  Re1 {[%clk 0:02:07]} 28. Bd2 {[%clk 0:00:20]}  Re2 {[%clk 0:02:07]} 29. Kc3 {[%clk 0:00:20]}  Nxa2+ {[%clk 0:02:04]} 30. Kd3 {[%clk 0:00:21]}  Rxh2 {[%clk 0:02:04]} 31. Nxf7 {[%clk 0:00:21]}  Rg2 {[%clk 0:02:02]} 32. Ba5 {[%clk 0:00:18]}  Rxg3+ {[%clk 0:02:01]} 33. Kc2 {[%clk 0:00:19]}  Ka6 {[%clk 0:02:00]} 34. Bd2 {[%clk 0:00:17]}  Rg2 {[%clk 0:01:58]} 35. Kd3 {[%clk 0:00:17]}  b4 {[%clk 0:01:56]} 36. Ne5 {[%clk 0:00:17]}  h4 {[%clk 0:01:56]} 37. Nf3 {[%clk 0:00:16]}  h3 {[%clk 0:01:56]} 0-1


[Site "https://www.chess.com"]

[Event "Titled Tuesday Blitz October 5 2021"]
[White "Mekhitarian, Krikor Sevag"]
[Black "Hasman, Cengiz"]
[WhiteFideId "2107660"]
[BlackFideId "413364"]
[WhiteElo "2598"]
[BlackElo "2020"]
[Result "1-0"]
[Round "01"]
[TimeControl "180+1"]
[Date "2021.10.05"]
[WhiteClock "0:00:17"]
[BlackClock "0:00:18"]

1. e4 {[%clk 0:02:58]}  d6 {[%clk 0:02:42]} 2. d4 {[%clk 0:02:57]}  Nf6 {[%clk 0:02:39]} 3. Nc3 {[%clk 0:02:57]}  Nbd7 {[%clk 0:02:37]} 4. Nf3 {[%clk 0:02:54]}  e5 {[%clk 0:02:23]} 5. Bc4 {[%clk 0:02:53]}  Be7 {[%clk 0:02:23]} 6. O-O {[%clk 0:02:46]}  c6 {[%clk 0:02:23]} 7. a4 {[%clk 0:02:46]}  a5 {[%clk 0:02:22]} 8. h3 {[%clk 0:02:35]}  Qc7 {[%clk 0:02:22]} 9. Re1 {[%clk 0:02:32]}  h6 {[%clk 0:02:23]} 10. Be3 {[%clk 0:02:29]}  Nf8 {[%clk 0:02:23]} 11. Qd3 {[%clk 0:02:19]}  Ng6 {[%clk 0:02:18]} 12. Rad1 {[%clk 0:02:17]}  O-O {[%clk 0:02:17]} 13. Qd2 {[%clk 0:02:16]}  Kh7 {[%clk 0:02:16]} 14. Ba2 {[%clk 0:02:15]}  Nh5 {[%clk 0:02:12]} 15. Ne2 {[%clk 0:01:55]}  f5 {[%clk 0:01:35]} 16. exf5 {[%clk 0:01:49]}  Rxf5 {[%clk 0:01:36]} 17. c3 {[%clk 0:01:19]}  e4 {[%clk 0:01:30]} 18. Nh2 {[%clk 0:01:19]}  Rf8 {[%clk 0:01:21]} 19. d5 {[%clk 0:01:18]}  c5 {[%clk 0:01:19]} 20. Bb1 {[%clk 0:01:17]}  Nf6 {[%clk 0:01:15]} 21. Ng3 {[%clk 0:01:16]}  Bd7 {[%clk 0:01:03]} 22. Nxe4 {[%clk 0:01:14]}  Nxe4 {[%clk 0:01:04]} 23. Bxe4 {[%clk 0:01:13]}  Bxa4 {[%clk 0:01:03]} 24. Qd3 {[%clk 0:01:08]}  Be8 {[%clk 0:01:03]} 25. g3 {[%clk 0:00:37]}  Bf6 {[%clk 0:01:01]} 26. h4 {[%clk 0:00:36]}  h5 {[%clk 0:00:59]} 27. Qe2 {[%clk 0:00:28]}  Kg8 {[%clk 0:00:53]} 28. Qxh5 {[%clk 0:00:27]}  Qf7 {[%clk 0:00:31]} 29. Ng4 {[%clk 0:00:24]}  a4 {[%clk 0:00:28]} 30. Bf5 {[%clk 0:00:24]}  a3 {[%clk 0:00:16]} 31. Be6 {[%clk 0:00:22]}  axb2 {[%clk 0:00:16]} 32. Nxf6+ {[%clk 0:00:19]}  gxf6 {[%clk 0:00:16]} 33. Qxg6+ {[%clk 0:00:19]}  Kh8 {[%clk 0:00:16]} 34. Bxf7 {[%clk 0:00:17]}  Bxf7 {[%clk 0:00:17]} 35. Qxf6+ {[%clk 0:00:17]}  Kg8 {[%clk 0:00:18]} 36. Bh6 {[%clk 0:00:17]} 1-0


[Site "https://www.chess.com"]

[Event "Titled Tuesday Blitz October 5 2021"]
[White "Mirzoev, Azer"]
[Black "Sinitsina, Anastassia"]
[WhiteFideId "13400304"]
[BlackFideId "4504640"]
[WhiteElo "2525"]
[BlackElo "2161"]
[Result "1-0"]
[Round "01"]
[TimeControl "180+1"]
[Date "2021.10.05"]
[WhiteClock "0:01:40"]
[BlackClock "0:01:26"]

1. c4 {[%clk 0:02:56]}  Nf6 {[%clk 0:02:59]} 2. Nc3 {[%clk 0:02:56]}  g6 {[%clk 0:03:00]} 3. d4 {[%clk 0:02:52]}  d6 {[%clk 0:03:00]} 4. e4 {[%clk 0:02:52]}  Bg7 {[%clk 0:03:00]} 5. f3 {[%clk 0:02:53]}  O-O {[%clk 0:03:01]} 6. Be3 {[%clk 0:02:53]}  e5 {[%clk 0:03:00]} 7. Nge2 {[%clk 0:02:53]}  Nc6 {[%clk 0:03:00]} 8. Qd2 {[%clk 0:02:53]}  Re8 {[%clk 0:02:57]} 9. O-O-O {[%clk 0:02:49]}  exd4 {[%clk 0:02:48]} 10. Nxd4 {[%clk 0:02:49]}  Ne5 {[%clk 0:02:48]} 11. Kb1 {[%clk 0:02:48]}  c6 {[%clk 0:02:44]} 12. Nb3 {[%clk 0:02:47]}  Be6 {[%clk 0:02:42]} 13. c5 {[%clk 0:02:37]}  Bxb3 {[%clk 0:02:13]} 14. axb3 {[%clk 0:02:37]}  dxc5 {[%clk 0:02:13]} 15. Bxc5 {[%clk 0:02:35]}  Qxd2 {[%clk 0:02:10]} 16. Rxd2 {[%clk 0:02:35]}  b6 {[%clk 0:02:11]} 17. Be3 {[%clk 0:02:33]}  Rad8 {[%clk 0:02:10]} 18. Be2 {[%clk 0:02:33]}  Rxd2 {[%clk 0:02:07]} 19. Bxd2 {[%clk 0:02:28]}  Rd8 {[%clk 0:02:07]} 20. Bg5 {[%clk 0:02:27]}  h6 {[%clk 0:02:06]} 21. Be3 {[%clk 0:02:27]}  Bf8 {[%clk 0:01:56]} 22. Kc2 {[%clk 0:02:26]}  Kg7 {[%clk 0:01:52]} 23. Ra1 {[%clk 0:02:25]}  Rd7 {[%clk 0:01:49]} 24. h3 {[%clk 0:02:24]}  g5 {[%clk 0:01:47]} 25. g3 {[%clk 0:02:17]}  Bb4 {[%clk 0:01:39]} 26. f4 {[%clk 0:02:04]}  Ng6 {[%clk 0:01:33]} 27. e5 {[%clk 0:01:43]}  Bxc3 {[%clk 0:01:31]} 28. bxc3 {[%clk 0:01:41]}  Nd5 {[%clk 0:01:28]} 29. Bd4 {[%clk 0:01:40]}  gxf4 {[%clk 0:01:26]} 30. e6+ {[%clk 0:01:40]} 1-0


[Site "https://www.chess.com"]